Cogmind - Beta 13 *** ADVENTURER MODE // 2024.04.08 @ 12:23:26 Player: Plonker Result: Destroyed by S-27 Virus with Autogun Performance ------------- Evolutions (3) 1500 Regions Visited (5) 1000 Robots Destroyed (39) 195 Value Destroyed (1123) 1123 Prototype IDs (4) 80 Alien Tech Used (0) 0 Bonus (-88) -88 TOTAL SCORE: 3810 Bonus ------- Follower Combat Kills 68 Friendly Fire -156 Cogmind --------- Core Integrity 0/700 Matter 5/300 Energy 296/300 System Corruption 5% Temperature Cool (87) Movement Treading (170) Location -7/Factory Parts ------- > --- POWER (2) -------- (None) > --- PROPULSION (2) --- Armored Treads Armored Treads > --- UTILITY (7) ------ Compact Battery Visual Processing Unit Improved Power Shielding Insulated Plating Insulated Plating > --- WEAPON (2) ------- Plasma Cannon Flak Gun > --- INVENTORY (5) ---- Armored Treads Armored Treads Peak State ------------ > --- POWER ------------ Improved Ion Engine Light Angular Momentum Engine > --- PROPULSION ------- Wheel Compact Wheel > --- UTILITY ---------- Visual Processing Unit Improved Sensor Array Transmission Jammer ECM Suite Improved Power Shielding Improved Medium Armor Plating Hacking Suite > --- WEAPON ----------- Rocket Launcher Rocket Launcher > --- INVENTORY -------- Improved Deuterium Engine Compact Battery Terrain Scanner Improved Light Armor Plating Gauss Cannon [Rating: 34] Favorites ----------- Power Ion Engine Engine Ion Engine Power Core Light Nuclear Core Propulsion Wheel Treads Armored Treads Leg Titanium Leg Wheel Wheel Utility ECM Suite Device ECM Suite Storage Small Storage Unit Processor Visual Processing Unit Hackware Hacking Suite Protection Improved Medium Armor Plating Weapon Rocket Launcher Energy Gun EM Pulse Gun Energy Cannon Plasma Cannon Ballistic Gun Heavy Assault Rifle Ballistic Cannon Light Cannon Launcher Rocket Launcher Build | -11 -10 -9 -9 -8 -7 ------- Run | Yrd Mat Mat Min Mat Fac Slots Evolved 6 | . . 2 . 2 2 Power 1 | . . . . . 1 Propulsion . | . . . . . . Utility 5 | . . 2 . 2 1 Weapon . | . . . . . . Parts Attached 49 | 6 5 5 4 5 24 Power 8 | 1 1 . . 2 4 Engine 6 | 1 1 . . 2 2 Core 2 | . . . . . 2 Reactor . | . . . . . . Propulsion 12 | 2 2 1 . . 7 Treads 2 | . . . . . 2 Leg 1 | . . . . . 1 Wheel 9 | 2 2 1 . . 4 Hover . | . . . . . . Flight . | . . . . . . Utility 17 | 1 1 2 . 3 10 Device 5 | . 1 1 . 2 1 Storage 3 | 1 . . . . 2 Processor 2 | . . 1 . . 1 Hackware 1 | . . . . . 1 Protection 6 | . . . . 1 5 Artifact . | . . . . . . Weapon 12 | 2 1 2 4 . 3 Energy Gun 1 | 1 . . . . . Energy Cannon 1 | . . . . . 1 Ballistic Gun 5 | 1 . 2 1 . 1 Ballistic Cannon 2 | . 1 . . . 1 Launcher 3 | . . . 3 . . Special Weapon . | . . . . . . Impact Weapon . | . . . . . . Slashing Weapon . | . . . . . . Piercing Weapon . | . . . . . . Special Melee Weapon . | . . . . . . Unidentified Prototypes . | . . . . . . Parts Lost 17 | . . . . . 17 Power 4 | . . . . . 4 Propulsion 3 | . . . . . 3 Utility 7 | . . . . . 7 Weapon 3 | . . . . . 3 Highest Loss Streak 11 | . . . . . 11 To Critical Strikes . | . . . . . . Average Slot Usage (%) 93 | . 99 99 100 100 84 Engine 11 | . 14 11 11 9 10 Wheel 18 | . 28 22 22 18 11 Device 20 | . 13 21 22 30 19 Storage 7 | . 14 11 11 5 2 Processor 8 | . . 11 11 9 10 Hackware 1 | . . . . . 3 Protection 4 | . . . . 9 9 Ballistic Gun 8 | . 14 16 20 . . Ballistic Cannon 3 | . 11 5 . . 1 Launcher 5 | . . . 1 18 8 Naked Turns . | . . . . . . Heaviest Build 38 | 13 16 19 21 33 38 Greatest Support 40 | 32 32 26 26 26 40 Greatest Overweight (x) 6 | . . . . 1 6 Average Overweight (x) . | . . . . 1 . Largest Inventory Capacity 8 | 8 8 8 8 8 5 Average Capacity 6 | 6 8 8 8 6 5 Most Carried 8 | 4 6 5 8 6 5 Average Carried 3 | 1 2 3 5 4 4 Final Capacity 8 | 8 8 8 8 5 5 Final Carried 7 | 1 4 5 7 5 2 Class Distribution -------------------- 42% | Mutant 19% | Scavenger-Mutant 13% | Infiltrator-Skirmisher 13% | Hacker-Skirmisher 5% | Hacker-Mutant 4% | Infiltrator-Mutant Dominant Class ---------------- Mutant | -10/Materials Mutant | -9/Materials Scavenger-Mutant | -9/Mines Infiltrator-Skirmisher | -8/Materials Hacker-Skirmisher | -7/Factory Resources | -11 -10 -9 -9 -8 -7 ----------- Run | Yrd Mat Mat Min Mat Fac Matter Collected 901 | 193 137 248 61 111 151 Remotely . | . . . . . . Salvage Created 995 | . 168 322 117 189 199 Parts 72 | . 12 28 4 18 10 Haulers Intercepted 1 | . . . . . 1 Recyclers Shooed . | . . . . . . Parts Field Recycled . | . . . . . . Retrieved Matter . | . . . . . . Parts Self-Destructed . | . . . . . . Prevented . | . . . . . . Kills | -11 -10 -9 -9 -8 -7 ------- Run | Yrd Mat Mat Min Mat Fac Combat Hostiles Destroyed 25 | . 5 8 3 5 4 Guns 9 | . 1 7 1 . . Cannons 4 | . 3 1 . . . AOE 10 | . 1 . 2 5 2 Classes Destroyed 9 | . 5 1 . 2 1 Worker 2 | . 1 . . . 1 Builder 2 | . . . . 1 1 Hauler 1 | . . . . . 1 Recycler 2 | . 1 . . . 1 Operator 1 | . . . . 1 . Watcher 5 | . 1 2 . 2 . Swarmer 5 | . 3 2 . . . Grunt 15 | . 2 3 3 5 2 Sentry 5 | . . 3 . . 2 Thug 1 | . . . . 1 . Best Kill Streak 7 | . 5 7 2 5 6 Combat Bots Only 6 | . 5 6 2 5 3 Max Kills in Single Turn 3 | . 1 2 2 3 2 Gunslinging 1 | . . 1 . . . Exploded 3 | . 1 . 2 3 1 Melee . | . . . . . . Uniques/NPCs Destroyed . | . . . . . . Combat | -11 -10 -9 -9 -8 -7 -------- Run | Yrd Mat Mat Min Mat Fac Hostile Shots Fired 430 | . 48 50 . 17 315 Missed 138 | . 16 14 . 6 102 Damage Taken 3173 | . 198 282 40 146 2507 Core 887 | . 54 74 16 41 702 Absorbed by Shields . | . . . . . . Redirected to Shielding 68 | . . . . . 68 Ignored by Resistances 1033 | . 68 92 12 41 820 Core Remaining (%) 86 | 100 78 . 77 92 . Volleys Fired 76 | . 18 20 9 7 22 Largest 2 | . 2 2 2 2 2 Hottest 128 | . 55 55 56 66 128 Shots Fired 136 | . 36 40 16 14 30 Gun 69 | . 18 34 14 . 3 Cannon 42 | . 18 6 . . 18 Launcher 25 | . . . 2 14 9 Special . | . . . . . . Kinetic 107 | . 36 40 14 . 17 Thermal 4 | . . . . . 4 Explosive 25 | . . . 2 14 9 Electromagnetic . | . . . . . . Robot Hit Streak 21 | . 5 21 11 3 8 Robot Miss Streak 3 | . 3 2 2 1 2 Penetration Max . | . . . . . . Secondary Targets 2 | . . 2 . . . Max Gunslinging Chain 1 | . . 1 . . . Shots Hit Robots 97 | . 23 31 13 8 22 Core Hits 73 | . 10 16 6 22 19 Critical Kills . | . . . . . . Critical Parts Destroyed . | . . . . . . Critical Strikes 3 | . . . . . 3 Blast 3 | . . . . . 3 Melee Attacks . | . . . . . . Impact . | . . . . . . Slashing . | . . . . . . Piercing . | . . . . . . Sneak Attacks . | . . . . . . Combat Hostiles . | . . . . . . Follow-up Attacks . | . . . . . . Damage Inflicted 3540 | . 474 436 339 1071 1220 Guns 729 | . 87 362 169 . 111 Cannons 669 | . 243 74 . . 352 Explosions 2116 | . 144 . 170 1071 731 Melee . | . . . . . . Ramming 26 | . . . . . 26 Kinetic 1317 | . 330 436 169 . 382 Thermal 452 | . 144 . . . 308 Explosive 1745 | . . . 170 1071 504 Electromagnetic . | . . . . . . Impact . | . . . . . . Slashing . | . . . . . . Piercing . | . . . . . . Highest Corruption 5 | . . . . . 5 Average Corruption 2 | . . . . . 2 Corruption Purged . | . . . . . . Corruption Blocked . | . . . . . . Overload Shots . | . . . . . . Overflow Damage 97 | . . . . 24 73 Projectiles . | . . . . . . Explosions 97 | . . . . 24 73 Melee . | . . . . . . Knockbacks 5 | . 5 . . . . Impact . | . . . . . . Kinetic 5 | . 5 . . . . Secondary . | . . . . . . Self-Inflicted Damage 158 | . . . . 12 146 Shots 4 | . . . . 1 3 Rammed 8 | . . . . . 8 Targets Rammed 14 | . . . . . 14 Kicked 6 | . . . . . 6 Crushed . | . . . . . . Highest Temperature 189 | . 40 27 . 36 189 Average Temperature 31 | . 16 10 . 20 55 Received Heat Transfer 642 | . 51 138 . 54 399 Siege Activations . | . . . . . . Robots Corrupted . | . . . . . . Combat Hostiles . | . . . . . . Parts Fried . | . . . . . . Impact Corruptions . | . . . . . . Robots Melted 1 | . . . . . 1 Combat Hostiles 1 | . . . . . 1 Parts Melted . | . . . . . . Heat Transferred 400 | . 100 . . . 300 Parts Sabotaged . | . . . . . . Parts Stolen . | . . . . . . Parts Stripped . | . . . . . . Power Chain Reactions . | . . . . . . Alert | -11 -10 -9 -9 -8 -7 ------- Run | Yrd Mat Mat Min Mat Fac Peak Influence 388 | . 229 315 177 388 206 Initial 150 | . . 82 103 58 150 Average 127 | . 101 137 173 160 118 Maximum Alert Level 1 | . 1 1 . 1 1 Low Security (%) 89 | 100 77 78 100 86 94 Level 1 10 | . 22 21 . 13 5 Level 2 . | . . . . . . Level 3 . | . . . . . . Level 4 . | . . . . . . Level 5 . | . . . . . . High Security . | . . . . . . Max Security . | . . . . . . Squads Dispatched 8 | . . 1 . 3 4 Investigation 5 | . . 1 . 1 3 Extermination 1 | . . . . . 1 Reinforcement 1 | . . . . 1 . Assault . | . . . . . . Garrison 1 | . . . . 1 . Intercept . | . . . . . . Searches Triggered . | . . . . . . Construction Impeded . | . . . . . . Haulers Reinforced . | . . . . . . Active Scanning Responses . | . . . . . . Cargo Convoy Interrupts . | . . . . . . Stealth | -11 -10 -9 -9 -8 -7 --------- Run | Yrd Mat Mat Min Mat Fac Distress Signals 6 | . 1 2 . 1 2 Communications Jammed 4 | . . . . 2 2 Distress Signals 2 | . . . . . 2 Times Spotted 66 | . 16 17 . 11 22 Peak Tracking Total 9 | . 4 9 . 4 6 Tactical Retreats 11 | . 3 4 . . 4 Traps | -11 -10 -9 -9 -8 -7 ------- Run | Yrd Mat Mat Min Mat Fac Traps Triggered 3 | . . . 1 . 2 Indirectly . | . . . . . . Trap Hack Attempts . | . . . . . . Triggered . | . . . . . . Disarmed . | . . . . . . Reprogrammed 1 | . . . . 1 . Reused . | . . . . . . Traps Extracted . | . . . . . . Installed . | . . . . . . Triggered . | . . . . . . Objects Rigged 3 | . 3 . . . . Exploded 1 | . 1 . . . . Machines | -11 -10 -9 -9 -8 -7 ---------- Run | Yrd Mat Mat Min Mat Fac Machines Disabled 5 | . 2 . . . 3 Max in Single Turn 2 | . 2 . . . 2 Machines Repaired . | . . . . . . Machines Dismantled . | . . . . . . Machines Sabotaged . | . . . . . . Overloaded Fab Kills . | . . . . . . Hacking | -11 -10 -9 -9 -8 -7 --------- Run | Yrd Mat Mat Min Mat Fac Machines Accessed 18 | . 3 3 1 3 8 Terminals 14 | . 3 3 . 2 6 Fabricators 1 | . . . . . 1 Repair Stations . | . . . . . . Recycling Units . | . . . . . . Scanalyzers 1 | . . . . . 1 Garrison Access 1 | . . . . 1 . Total Hacks 52 | . 11 11 1 12 17 Successful 28 | . 8 9 1 2 8 Failed 24 | . 3 2 . 10 9 Catastrophic 1 | . . 1 . . . Database Lockouts . | . . . . . . Manual 24 | . 7 8 . 2 7 Terminals 43 | . 11 11 . 8 13 Fabricators 1 | . . . . . 1 Repair Stations . | . . . . . . Recycling Units . | . . . . . . Scanalyzers 3 | . . . . . 3 Garrison Access 4 | . . . . 4 . Terminal Hacks 10 | . 3 3 1 1 2 Prototype ID Bank 3 | . 3 . . . . Open Door 1 | . . . 1 . . Open DSF 1 | . . . . . 1 Unreport Threat 2 | . . 1 . . 1 Reprogram Traps 1 | . . . . 1 . Registered Components 1 | . . 1 . . . Zone Layout 1 | . . 1 . . . Fabricator Hacks 1 | . . . . . 1 Build 1 | . . . . . 1 Repair Station Hacks . | . . . . . . Recycling Unit Hacks . | . . . . . . Scanalyzer 1 | . . . . . 1 Insert Component 1 | . . . . . 1 Garrison Access Hacks . | . . . . . . Unauthorized Hacks 16 | . 5 6 . 1 4 Terminals 16 | . 5 6 . 1 4 Track 2 | . 1 1 . . . Assimilate 1 | . . 1 . . . Botnet 11 | . 3 3 . 1 4 Detonate 1 | . 1 . . . . Operators 1 | . . 1 . . . Fabricators . | . . . . . . Repair Stations . | . . . . . . Recycling Units . | . . . . . . Scanalyzers . | . . . . . . Garrison Access . | . . . . . . Data Cores Recovered 1 | . . . . 1 . Used 1 | . . . . 1 . Hacking Detections 14 | . 2 3 . 3 6 Full Trace Events 6 | . . 1 . 2 3 Feedback Events . | . . . . . . Feedback Blocked . | . . . . . . Robot Schematics Acquired . | . . . . . . Robots Built . | . . . . . . Authchips . | . . . . . . Time . | . . . . . . Total Robot Build Rating . | . . . . . . Part Schematics Acquired . | . . . . . . Parts Built 2 | . . . . . 2 Authchips . | . . . . . . Time 117 | . . . . . 117 Total Part Build Rating 14 | . . . . . 14 Parts Repaired . | . . . . . . Time . | . . . . . . Parts Recycled . | . . . . . . Recycled Matter . | . . . . . . Retrieved Matter . | . . . . . . Retrieved Components . | . . . . . . Parts Scanalyzed 1 | . . . . . 1 Part Schematics Acquired . | . . . . . . Parts Damaged . | . . . . . . Bothacking | -11 -10 -9 -9 -8 -7 ------------ Run | Yrd Mat Mat Min Mat Fac Used RIF Installer . | . . . . . . Robots Hacked . | . . . . . . Non-combat . | . . . . . . Combat . | . . . . . . Robot Hacks Applied . | . . . . . . Relay Couplers Released . | . . . . . . Fabnet Peak Effective % . | . . . . . . Robots Rewired . | . . . . . . Allies Hacked . | . . . . . . Hacks Repelled . | . . . . . . Allies | -11 -10 -9 -9 -8 -7 -------- Run | Yrd Mat Mat Min Mat Fac Total Allies 1 | . . . 1 . . Largest Group 1 | . . . 1 1 1 Highest-Rated Group 31 | . . . 31 31 31 Highest-Rated Ally 31 | . . . 31 31 31 Total Orders . | . . . . . . Ally Attacks 16 | . . . . 16 . Total Damage 248 | . . . . 248 . Kills 2 | . . . . 2 . Allies Corrupted . | . . . . . . Allies Melted . | . . . . . . Intel | -11 -10 -9 -9 -8 -7 ------- Run | Yrd Mat Mat Min Mat Fac Robot Analysis Total . | . . . . . . Derelict Logs Recovered 1 | . . . 1 . . Drone Launches . | . . . . . . Drone Recoveries . | . . . . . . Exploration | -11 -10 -9 -9 -8 -7 ------------- Run | Yrd Mat Mat Min Mat Fac Turns Passed 2040 | 54 314 395 300 154 823 Spaces Moved 1653 | 37 248 362 275 117 614 Core 13 | 1 . . . . 12 Treads 31 | . . . . . 31 Legs 13 | . . . . . 13 Wheels 1596 | 36 248 362 275 117 558 Hover . | . . . . . . Flight . | . . . . . . Fastest Speed 50 | 50 90 90 90 105 50 Average Speed 97 | 98 99 90 90 105 103 Slowest Speed 350 | 100 100 90 90 105 350 Overloaded Moves . | . . . . . . Propulsion Burnouts . | . . . . . . Robots Hopped . | . . . . . . Cave-ins Triggered . | . . . . . . Exploration Rate (%) 29 | 3 40 31 64 19 17 Regions Visited 5 Branch Regions 1 Pre-discovered Areas . | . . . . . . Known Exits Taken 1 | . . . . 1 . Unknown Exits Taken 4 | 1 1 1 1 . . Scrap Searched 1 | . . . 1 . . Spaces Dug . | . . . . . . Terrain Destroyed 229 | . 51 . 30 65 83 Melee . | . . . . . . Projectile 2 | . . . . . 2 AOE 227 | . 51 . 30 65 81 Terrain Rammed . | . . . . . . Walls Destroyed . | . . . . . . Machines Disabled . | . . . . . . Actions | -11 -10 -9 -9 -8 -7 --------- Run | Yrd Mat Mat Min Mat Fac Total 1946 | 54 282 395 310 134 771 Wait 84 | 5 . . 15 . 64 Move 1648 | 36 247 361 274 116 614 Hop . | . . . . . . Pick Up 49 | 7 8 6 5 3 20 Fast Attach 3 | . . . . . 3 Attach 29 | 6 1 2 . 2 18 Detach 2 | . . . . . 2 Swap 17 | . 4 3 4 3 3 Drop 24 | . 4 3 3 3 11 Fire 76 | . 18 20 9 7 22 Melee . | . . . . . . Ram 3 | . . . . . 3 Kick 6 | . . . . . 6 Crush 5 | . . . . . 5 Escape Stasis . | . . . . . . Rewire . | . . . . . . Trap . | . . . . . . Miscellaneous . | . . . . . . Route ------- -11/Scrapyard -10/Materials (discovered 2 exits: *Mat / [*Min]) -9/Materials -9/Mines (discovered 2 exits: *Mat x2) -8/Materials -7/Factory History --------- Turn | Location | Event 13 | -11/Scrapyard | Discovered new exit (range 16) 55 | -11/Scrapyard | Entered Materials 288 | -10/Materials | Discovered new exit (range 15) 312 | -10/Materials | Build established: Mutant 338 | -10/Materials | Discovered new exit (range 14) 369 | -10/Materials | Entered another Materials area 369 | -9/Materials | Evolved 2 slots: Utility x2 668 | -9/Materials | Discovered new exit (range 10) 764 | -9/Materials | Entered Mines 804 | -9/Mines | Assisted by bots powering up and referring to "LRC-V3" 956 | -9/Mines | Met a Derelict who couldn't figure out how to use a Trap Extractor 1029 | -9/Mines | Discovered new exit (range 9) 1031 | -9/Mines | Received a Rocket Launcher from a helpful Derelict 1037 | -9/Mines | Received a Mining Laser from a helpful Derelict 1049 | -9/Mines | Discovered new exit (range 3) 1064 | -9/Mines | Entered Materials 1064 | -8/Materials | Accompanied by 1 ally 1064 | -8/Materials | Evolved 2 slots: Utility x2 1065 | -8/Materials | Identified exit to Factory 1218 | -8/Materials | Entered Factory 1218 | -7/Factory | Accompanied by 1 ally 1218 | -7/Factory | Evolved 2 slots: Power x1, Utility x1 1739 | -7/Factory | Lost 3 parts (1n2w) 1820 | -7/Factory | Core integrity fell below 50% 1851 | -7/Factory | Lost 11 parts (3p2n6u) 1922 | -7/Factory | Core integrity fell below 20% 2019 | -7/Factory | Fabricated Adv. Coolant Injector? 2041 | -7/Factory | Destroyed by S-27 Virus with Autogun Last Messages --------------- F012. Dispatching Investigation squad. 01977_ Acquired Insulated Plating. 01978_ R-06 Scavenger collects Wheel. 01987_ Terrain Scanner destroyed. 01988_ Acquired Flak Gun. 01992_ Acquired 3 matter. 02005_ Slammed into S-27 Virus. 02015_ Slammed into P-60 Hacker. 02016_ C-30 ARC bursts open, deploying its payload. 02017_ Slammed into P-60 Hacker. 02019_ >> FABRICATOR: Completed Adv. Coolant Injector? 02019_ Slammed into P-60 Hacker. 02020_ P-60 Hacker resets P-60 Hacker, system corruption cleaned. 02020_ Slammed into P-60 Hacker. 02021_ Gauss Cannon destroyed. 02036_ P-60 Hacker destroyed. 02036_ Lgt. Nuclear Core destroyed. Map ----- +----------------------------------------------------+ | ?????????????????????????????????????????????????? | | ?????????????????????????????????????????????????? | | ?????????????????????????????????????????????????? | | ?????????????????????????????????????????????????? | | ?????????????????????????????????????????????????? | | ?????????????????????????????????????????????????? | | ?????????????????????????????????????????????????? | | ??????????????????????????? ???????????????? ??? | | ????????????????????????? ????????????????????? | | ??????????????????????# ????????????????????? | | ??????????????????????# #??????????????#????? | | ??????????????????????# #???????????????????? | | ??????????????????????# k ##########????????? ? | | ??????????????????????# ???????????? | | ??????????????????????# ?? ??????#?? | | ??????????????????????# ????????????? | | ??????????????????????# ??????????#??? | | ??????????????????????# #????########### | | ??????????????????????# #????# """T""" # | | ?????????????????###### #????# # | | ?????????????????# #????# == ! # | | ????????????###### %s ###### ! # | | ????????????? p + !! | | ?????????????????# ###### # | | ?????????????????## ### #" #?#??# ! ! # | | ??????????????????????###@######%"#???## # | | ??????????????????????? ???#" ##########/##### | | ?????????????????????" # ! | | ???????????????????""" !! # | | ?????????????????? """ !! # ]! | | ?????????????????? !! # ] | | ?????????????????/########### | | ????????????????????????????# ###+##### | | ????????????????????????????# """ """ ??? ????? | | ????????????????????????????? """ """ ????"????? | | ????????????????????????????# ?"" """ ?? ?T????? | | ????????????????????????????? ???? ?????"????? | | ??????????????????????????????? ????"""??????????? | | ?????????????????????????????????????????????????? | | ?????????????????????????????????????????????????? | | ?????????????????????????????????????????????????? | | ?????????????????????????????????????????????????? | | ?????????????????????????????????????????????????? | | ?????????????????????????????????????????????????? | | ?????????????????????????????????????????????????? | | ?????????????????????????????????????????????????? | | ?????????????????????????????????????????????????? | | ?????????????????????????????????????????????????? | | ?????????????????????????????????????????????????? | | ?????????????????????????????????????????????????? | +----------------------------------------------------+ Best States ------------- Heat Dissipation 34 Energy Generation 25 Energy Capacity 515 Matter Stores 300 Matter Capacity 300 Sight Range 18 Robot Scan Range 15 Terrain Scan Range 14 Terrain Scan Density 10 ECM Strength 1 Jamming Range 12 Armor Coverage 300 Resistance: KI 20 Resistance: TH 20 Resistance: EX 20 Resistance: EM 35 Resistance: I 20 Resistance: S 20 Resistance: P 20 Power Shielding 66 Evasion (%) 50 Recoil Reduction 2 Offensive Hacking 20 Item Schematics ----------------- None Robot Schematics ------------------ None Fabricated ------------ Adv. Coolant Injector | x2 | -7/Factory | Preloaded Alien Tech Used ----------------- None Achievements -------------- Dramatic Entrance No Signal Challenges ------------ None Game ------ Seed HoverRocketStripper Manual? 0 Play Time 00:53:02 Cumulative 30.2 hours Start 2024.04.08 @ 10:17:05 End 2024.04.08 @ 12:23:26 Sessions 1 Manual Loads 0 Difficulty Adventurer Special Mode None Game No. 27 Rogue 0 Adventurer 27 Explorer 0 Win Type - Total 0 Types 0/0/0/0/0/0/0/0/0 Lore% 20 Gallery% 30 Achievement% 22 Wizard Run 0 Options --------- Layout 1 ASCII 0 Keyboard 0 Movement Numpad Keybinds 0 Fullscreen 2 Font 16/Tamsyn Map View 50x40 Zoom Use 0% Tactical HUD 1 Map Filters NONE Filters NONE Steam SD RUN: be3a8408-dcba-4e45-8ffd-1a2dbf50dfd5